Workbook

Sheet 1-3 ГОДА
A1: 10 день на 12.09.2025
A2: МОУ детский сад № 320 Ежеденевное 20-ти дневное меню ( Весна-лето) для детей дошкольного возраста 1-3 лет, 12 часового режима функционирования
A3: Прием пищи, наименование блюда | B3: Масса порции | C3: Пищевые вещества | F3: Энергети-ческая ценность, ккал
C4: Белки, г | D4: Жиры, г | E4: Углеводы, г
A5: Завтрак
A6: КАША ЖИДКАЯ (ПШЕНИЧНАЯ) ТКК №105 | B6: 150 | C6: 7.0 | D6: 3.5 | E6: 29.1 | F6: 175.1
A7: КОФЕЙНЫЙ НАПИТОК С МОЛОКОМ № 395 | B7: 160 | C7: 2.4 | D7: 1.9 | E7: 12.2 | F7: 76.1
A8: БАТОН | B8: 40 | C8: 3.0 | D8: 1.2 | E8: 20.6 | F8: 104.8
A9: СЫР ( ПОРЦИЯМИ) № 7 | B9: 5 | C9: 1.2 | D9: 1.5 | E9: 0.0 | F9: 17.7
A10: ИТОГО ЗА ЗАВТРАК | B10: 355 | C10: =SUM(C6:C9) -> 13.6 | D10: =SUM(D6:D9) -> 8.1 | E10: =SUM(E6:E9) -> 61.9 | F10: =SUM(F6:F9) -> 373.7
A11: II Завтрак
A12: ФРУКТЫ СВЕЖИЕ ( ЯБЛОКО) №368 | B12: 200 | C12: 0.8 | D12: 0.8 | E12: 19.0 | F12: 91.2
A13: ИТОГО ЗА 2-й ЗАВТРАК | B13: =SUM(B12) -> 200 | C13: =SUM(C12) -> 0.8 | D13: =SUM(D12) -> 0.8 | E13: =SUM(E12) -> 19.0 | F13: 91.2
A14: Обед
A15: ИКРА КАБАЧКОВАЯ КОНСЕРВИРОВАННАЯ | B15: 30 | C15: 0.6 | D15: 2.7 | E15: 2.3 | F15: 35.7
A16: БОРЩ С КАПУСТОЙ И КАРТОФЕЛЕМ НА МЕСНО-КОСТОМ БУЛЬОНЕ ТТК №28 | B16: 150 | C16: 1.5 | D16: 3.0 | E16: 7.1 | F16: 62.4
A17: КОТЛЕТЫ, БИТОЧКИ, ШНИЦЕЛИ РУБЛЕННЫЕ ТТК №61 | B17: 50 | C17: 6.3 | D17: 8.5 | E17: 15.1 | F17: 145.0
A18: МАКАРОННЫЕ ИЗДЕЛИЯ ОТВАРНЫЕ С МАСЛОМ №205 | B18: 110 | C18: 4.1 | D18: 4.4 | E18: 26.3 | F18: 166.1
A19: КИСЕЛЬ ИЗ ПОВИДЛА, ДЖЕМА, ВАРЕНЬЯ №383 | B19: 150 | C19: 0.1 | D19: 0.0 | E19: 21.1 | F19: 84.8
A20: ХЛЕБ ПЕКЛЕВАННЫЙ | B20: 20 | C20: 1.3 | D20: 0.2 | E20: 8.5 | F20: 40.8
A21: ХЛЕБ ПШЕНИЧНЫЙ | B21: 25 | C21: 1.9 | D21: 0.2 | E21: 12.5 | F21: 59.2
A22: ИТОГО ЗА ОБЕД | B22: 535 | C22: 15.8 | D22: 19.0 | E22: 92.9 | F22: 593.96
A23: Полдник
A24: ПОМИДОРЫ СВЕЖИЕ | B24: 40 | C24: 0.4 | D24: 0.0 | E24: 0.9 | F24: 5.5
A25: ФРИКАДЕЛЬКИ ВКУСНЯШКА С СОУСОМ СМЕТАННЫМ, ТТК №32/№354 | B25: 100/30 | C25: 8.5 | D25: 9.7 | E25: 15.9 | F25: 201.4
A26: ЧАЙ С САХАРОМ, ВАРЕНЬЕМ, ДЖЕМОМ, МЕДОМ, ПОВИДЛОМ №392 | B26: 180/10 | C26: 0.1 | D26: 0.0 | E26: 9.8 | F26: 39.4
A27: ХЛЕБ ПШЕНИЧНЫЙ | B27: 20 | C27: 1.5 | D27: 0.1 | E27: 9.7 | F27: 46.0
A28: ПЕЧЕНЬЕ | B28: 20 | C28: 1.5 | D28: 2.0 | E28: 14.9 | F28: 83.4
A29: ИТОГО ЗА ПОЛДНИК | B29: 400 | C29: =SUM(C24:C28) -> 12.0 | D29: =SUM(D24:D28) -> 11.8 | E29: 51.2 | F29: 375.7
A30: Всего за день: | C30: 42.2 | D30: 39.7 | E30: 225.0 | F30: =SUM(F29+F22+F13+F10) -> 1,434.6

Sheet 3-7 ЛЕТ
A1: 10 день на 12.09.2025
A2: МОУ детский сад № 320 Ежеденевное 20-ти дневное меню (Весна-лето) для детей дошкольного возраста 3-7 лет, 12 часового режима функционирования
A3: Прием пищи, наименование блюда | B3: Масса порции | C3: Пищевые вещества | F3: Энергети-ческая ценность, ккал
C4: Белки, г | D4: Жиры, г | E4: Углеводы, г
A5: Завтрак
A6: КАША ЖИДКАЯ (ПШЕНИЧНАЯ) ТКК №105 | B6: 150 | C6: 7.0 | D6: 3.5 | E6: 29.1 | F6: 175.1
A7: КОФЕЙНЫЙ НАПИТОК С МОЛОКОМ № 395 | B7: 160 | C7: 2.4 | D7: 1.9 | E7: 12.2 | F7: 76.1
A8: БАТОН | B8: 40 | C8: 3.0 | D8: 1.2 | E8: 20.6 | F8: 104.8
A9: СЫР ( ПОРЦИЯМИ) № 7 | B9: 5 | C9: 1.2 | D9: 1.5 | E9: 0.0 | F9: 17.7
A10: ИТОГО ЗА ЗАВТРАК | B10: 355 | C10: =SUM(C6:C9) -> 13.6 | D10: =SUM(D6:D9) -> 8.1 | E10: =SUM(E6:E9) -> 61.9 | F10: =SUM(F6:F9) -> 373.7
A11: II Завтрак
A12: ФРУКТЫ СВЕЖИЕ ( ЯБЛОКО) №368 | B12: 200 | C12: 0.8 | D12: 0.8 | E12: 19.0 | F12: 91.2
A13: ИТОГО ЗА 2-й ЗАВТРАК | B13: =SUM(B12) -> 200 | C13: =SUM(C12) -> 0.8 | D13: =SUM(D12) -> 0.8 | E13: =SUM(E12) -> 19.0 | F13: 91.2
A14: Обед
A15: ИКРА КАБАЧКОВАЯ КОНСЕРВИРОВАННАЯ | B15: 30 | C15: 0.6 | D15: 2.7 | E15: 2.3 | F15: 35.7
A16: БОРЩ С КАПУСТОЙ И КАРТОФЕЛЕМ НА МЕСНО-КОСТОМ БУЛЬОНЕ ТТК №28 | B16: 150 | C16: 1.5 | D16: 3.0 | E16: 7.1 | F16: 62.4
A17: КОТЛЕТЫ, БИТОЧКИ, ШНИЦЕЛИ РУБЛЕННЫЕ ТТК №61 | B17: 50 | C17: 6.3 | D17: 8.5 | E17: 15.1 | F17: 145.0
A18: МАКАРОННЫЕ ИЗДЕЛИЯ ОТВАРНЫЕ С МАСЛОМ №205 | B18: 110 | C18: 4.1 | D18: 4.4 | E18: 26.3 | F18: 166.1
A19: КИСЕЛЬ ИЗ ПОВИДЛА, ДЖЕМА, ВАРЕНЬЯ №383 | B19: 150 | C19: 0.1 | D19: 0.0 | E19: 21.1 | F19: 84.8
A20: ХЛЕБ ПЕКЛЕВАННЫЙ | B20: 20 | C20: 1.3 | D20: 0.2 | E20: 8.5 | F20: 40.8
A21: ХЛЕБ ПШЕНИЧНЫЙ | B21: 25 | C21: 1.9 | D21: 0.2 | E21: 12.5 | F21: 59.2
A22: ИТОГО ЗА ОБЕД | B22: 535 | C22: 15.8 | D22: 19.0 | E22: 92.9 | F22: 593.96
A23: Полдник
A24: ПОМИДОРЫ СВЕЖИЕ | B24: 40 | C24: 0.4 | D24: 0.0 | E24: 0.9 | F24: 5.5
A25: ФРИКАДЕЛЬКИ ВКУСНЯШКА С СОУСОМ СМЕТАННЫМ, ТТК №32/№354 | B25: 100/30 | C25: 8.5 | D25: 9.7 | E25: 15.9 | F25: 201.4
A26: ЧАЙ С САХАРОМ, ВАРЕНЬЕМ, ДЖЕМОМ, МЕДОМ, ПОВИДЛОМ №392 | B26: 180/10 | C26: 0.1 | D26: 0.0 | E26: 9.8 | F26: 39.4
A27: ХЛЕБ ПШЕНИЧНЫЙ | B27: 20 | C27: 1.5 | D27: 0.1 | E27: 9.7 | F27: 46.0
A28: ПЕЧЕНЬЕ | B28: 20 | C28: 1.5 | D28: 2.0 | E28: 14.9 | F28: 83.4
A29: ИТОГО ЗА ПОЛДНИК | B29: 400 | C29: =SUM(C24:C28) -> 12.0 | D29: =SUM(D24:D28) -> 11.8 | E29: 51.2 | F29: 375.7
A30: Всего за день: | C30: 42.2 | D30: 39.7 | E30: 225.0 | F30: =SUM(F29+F22+F13+F10) -> 1,434.6
A31: Всего за день: | C31: =SUM(C30+C22+C13+C10) -> 72.4 | D31: 51.0 | E31: 284.4 | F31: =SUM(F30+F22+F13+F10) -> 2,493.4

Sheet Лист3
